Cogmind - Beta 13 @@@ ROGUE MODE // 2024.03.05 @ 13:05:35 Player: ldi (hl). (hl) Result: Destroyed by X-72 Disruptor with Arc Projector Performance ------------- Evolutions (4) 2000 Regions Visited (8) 1600 Robots Destroyed (128) 640 Value Destroyed (5335) 5335 Prototype IDs (8) 160 Alien Tech Used (0) 0 Bonus (2121) 2121 TOTAL SCORE: 11856 Bonus ------- High Alert Combat Kills 544 Follower Combat Kills 297 Entered Garrisons 400 Used RIF Installer 1000 Friendly Fire -120 Cogmind --------- Core Integrity 0/850 Matter 203/300 Energy 98/100 System Corruption 2% Temperature Cool (1) Movement Walking (120) Location -6/Garrison Parts ------- > --- POWER (1) -------- (None) > --- PROPULSION (3) --- Carbon-fiber Leg > --- UTILITY (8) ------ Targeting Computer Target Analyzer Hacking Suite Drone Bay (2/2) > --- WEAPON (3) ------- (None) > --- INVENTORY (5) ---- Light Angular Momentum Engine Sensor Array Drone Bay (2/2) Autogun Flak Gun Peak State ------------ > --- POWER ------------ Light Angular Momentum Engine > --- PROPULSION ------- Carbon-fiber Leg Carbon-fiber Leg Carbon-fiber Leg > --- UTILITY ---------- Advanced Heat Sink Large Storage Unit Targeting Computer Targeting Computer Propulsion Shielding Light Armor Plating Hacking Suite Drone Bay > --- WEAPON ----------- Improved Lightning Gun Gauss Rifle Gauss Rifle > --- INVENTORY -------- Light Angular Momentum Engine Light Fission Core Carbon-fiber Leg Medium Battery Sensor Array Core Shielding Drone Bay Drone Bay Gatling Laser Thermic Laser Flak Gun Long-range Missile Launcher Long-range Missile Launcher [Rating: 50] Favorites ----------- Power Improved Ion Engine Engine Improved Ion Engine Power Core Nuclear Core Propulsion Light Treads Treads Light Treads Leg Aluminum Leg Utility Large Storage Unit Device Heat Sink Storage Large Storage Unit Processor Targeting Computer Hackware Hacking Suite Protection Light Armor Plating Weapon Advanced Beam Cannon Energy Gun Heavy Particle Gun Energy Cannon Advanced Beam Cannon Ballistic Gun Gauss Rifle Launcher Rocket Launcher Build | -11 -10 -9 -8 -8 -8 -8 -6 -6 ------- Run | Yrd Mat Mat Mat Sto Gar Rec Fac Gar Slots Evolved 8 | . . 2 2 . . . 4 . Power . | . . . . . . . . . Propulsion 1 | . . 1 . . . . . . Utility 6 | . . 1 2 . . . 3 . Weapon 1 | . . . . . . . 1 . Parts Attached 152 | 5 3 17 18 17 32 1 30 29 Power 13 | 1 1 1 2 1 2 . 3 2 Engine 7 | 1 1 . . . 1 . 3 1 Core 6 | . . 1 2 1 1 . . 1 Reactor . | . . . . . . . . . Propulsion 46 | 2 . 6 1 6 15 . 10 6 Treads 25 | . . 6 1 6 9 . 3 . Leg 21 | 2 . . . . 6 . 7 6 Wheel . | . . . . . . . . . Hover . | . . . . . . . . . Flight . | . . . . . . . . . Utility 51 | . 2 4 9 6 7 1 9 13 Device 25 | . 1 . 4 4 5 . 4 7 Storage 1 | . . 1 . . . . . . Processor 5 | . . . 1 1 . . 2 1 Hackware 3 | . . . . . . 1 2 . Protection 17 | . 1 3 4 1 2 . 1 5 Artifact . | . . . . . . . . . Weapon 42 | 2 . 6 6 4 8 . 8 8 Energy Gun 27 | 2 . 5 6 3 4 . 3 4 Energy Cannon 4 | . . 1 . 1 2 . . . Ballistic Gun 7 | . . . . . . . 5 2 Ballistic Cannon . | . . . . . . . . . Launcher 4 | . . . . . 2 . . 2 Special Weapon . | . . . . . . . . . Impact Weapon . | . . . . . . . . . Slashing Weapon . | . . . . . . . . . Piercing Weapon . | . . . . . . . . . Special Melee Weapon . | . . . . . . . . . Unidentified Prototypes 6 | . . 2 1 2 . . . 1 Parts Lost 61 | . . 1 . 3 15 . 19 23 Power 7 | . . . . 1 2 . 2 2 Propulsion 18 | . . . . . 7 . 7 4 Utility 23 | . . 1 . 2 4 . 7 9 Weapon 13 | . . . . . 2 . 3 8 Highest Loss Streak 17 | . . 1 . 3 7 . 17 14 To Critical Strikes 1 | . . . . 1 . . . . Average Slot Usage (%) 92 | . 81 92 99 98 91 100 80 89 Engine 4 | . 14 4 . . 5 9 5 2 Core 3 | . . 6 9 8 1 . . 2 Treads 16 | . . 23 27 26 14 27 3 . Leg 8 | . 28 6 . . 8 . 12 17 Device 10 | . 5 11 15 18 10 3 5 8 Storage 7 | . . 5 9 9 9 9 6 5 Processor 11 | . . . 9 10 18 18 10 13 Hackware 2 | . . . . . . 5 14 6 Protection 7 | . 5 12 11 6 6 9 1 12 Energy Gun 11 | . 28 21 18 10 8 . 4 8 Energy Cannon 5 | . . . . 7 9 18 2 . Ballistic Gun 1 | . . . . . . . 10 8 Naked Turns . | . . . . . . . . . Heaviest Build 53 | 6 12 36 48 49 41 39 42 53 Greatest Support 63 | 20 20 63 63 63 60 60 60 45 Greatest Overweight (x) 12 | . . . . . 12 . 2 8 Average Overweight (x) . | . . . . . . . . . Largest Inventory Capacity 15 | 5 5 15 15 15 15 15 15 15 Average Capacity 13 | 5 5 9 15 15 15 15 15 14 Most Carried 15 | 2 4 15 15 15 15 15 15 14 Average Carried 11 | . 1 6 14 14 13 15 11 13 Final Capacity 15 | 5 5 15 15 15 15 15 15 5 Final Carried 15 | 1 3 15 15 15 15 15 15 5 Class Distribution -------------------- 55% | Scavenger-Mutant 27% | Mutant 16% | Scavenger-Gunner Dominant Class ---------------- Mutant | -10/Materials Mutant | -9/Materials Scavenger-Mutant | -8/Materials Scavenger-Mutant | -8/Storage Scavenger-Mutant | -8/Garrison Scavenger-Mutant | -8/Recycling Scavenger-Gunner | -6/Factory Scavenger-Gunner | -6/Garrison Resources | -11 -10 -9 -8 -8 -8 -8 -6 -6 ----------- Run | Yrd Mat Mat Mat Sto Gar Rec Fac Gar Matter Collected 2310 | 250 30 381 170 156 408 . 492 423 Remotely . | . . . . . . . . . Salvage Created 5564 | . 238 964 453 984 912 105 1129 779 Parts 279 | . 14 64 26 44 41 4 48 38 Haulers Intercepted 6 | . . 3 . 3 . . . . Recyclers Shooed 10 | . . 3 1 4 . . 2 . Parts Field Recycled . | . . . . . . . . . Retrieved Matter . | . . . . . . . . . Parts Self-Destructed . | . . . . . . . . . Prevented . | . . . . . . . . . Kills | -11 -10 -9 -8 -8 -8 -8 -6 -6 ------- Run | Yrd Mat Mat Mat Sto Gar Rec Fac Gar Combat Hostiles Destroyed 97 | . 4 14 6 14 23 2 15 19 Melee 2 | . . 1 . . . . . 1 Guns 63 | . 4 12 5 5 12 . 12 13 Cannons 16 | . . . . 7 4 2 3 . AOE 11 | . . . . . 6 . . 5 Classes Destroyed 16 | . 4 4 1 1 2 . 2 2 Worker 8 | . 2 6 . . . . . . Tunneler 1 | . . . . . . . 1 . Hauler 6 | . . 3 . 3 . . . . Recycler 10 | . 1 3 2 2 . . 2 . Mechanic 1 | . . 1 . . . . . . Operator 1 | . . . 1 . . . . . Drone 1 | . . . . . . . . 1 Watcher 4 | . . 3 1 . . . . . Swarmer 20 | . 3 6 3 2 . . 2 4 Cutter 3 | . . . . . 3 . . . Saboteur 1 | . . . . . . . . 1 Grunt 39 | . 1 3 1 2 14 . 8 10 Duelist 2 | . . . . . . . 2 . Sentry 24 | . . 5 2 9 4 2 1 1 Hunter 6 | . . . . 1 1 . 2 2 Programmer 2 | . . . . . 1 . . 1 Best Kill Streak 8 | . 4 5 3 3 8 2 5 5 Combat Bots Only 8 | . 4 4 3 3 8 2 4 5 Max Kills in Single Turn 3 | . 1 1 1 1 3 1 2 2 Gunslinging 1 | . . . . . . . 1 1 Exploded 3 | . . . . . 3 . . 2 Melee 1 | . . 1 . . . . . 1 Uniques/NPCs Destroyed . | . . . . . . . . . Combat | -11 -10 -9 -8 -8 -8 -8 -6 -6 -------- Run | Yrd Mat Mat Mat Sto Gar Rec Fac Gar Hostile Shots Fired 730 | . 22 91 40 63 142 . 173 199 Missed 170 | . 3 23 7 18 27 . 31 61 Damage Taken 8754 | . 172 760 548 691 1884 . 2489 2210 Core 1376 | . 34 122 36 57 268 . 444 415 Absorbed by Shields 14 | . . . . . 14 . . . Redirected to Shielding 87 | . . . . . . . . 87 Ignored by Resistances 41 | . . . 34 7 . . . . Core Remaining (%) 72 | 100 86 69 . . . 34 . . Volleys Fired 338 | . 12 72 25 59 78 4 48 40 Largest 3 | . 2 2 2 2 2 2 3 3 Hottest 220 | . 90 133 112 124 136 136 192 220 Shots Fired 710 | . 24 144 46 109 153 7 117 110 Gun 521 | . 24 138 46 55 62 . 93 103 Cannon 172 | . . 6 . 54 81 7 24 . Launcher 17 | . . . . . 10 . . 7 Special . | . . . . . . . . . Kinetic 113 | . . . . . . . 63 50 Thermal 545 | . 24 144 28 109 143 7 54 36 Explosive 17 | . . . . . 10 . . 7 Electromagnetic 35 | . . . 18 . . . . 17 Robot Hit Streak 24 | . 5 18 20 12 21 3 22 24 Robot Miss Streak 5 | . 2 5 3 3 2 1 2 3 Penetration Max 1 | . . . . . . . 1 1 Secondary Targets 15 | . . 2 1 . 3 . 4 5 Max Gunslinging Chain 2 | . . 1 1 . 1 . 1 2 Shots Hit Robots 480 | . 15 90 33 70 95 4 92 81 Core Hits 258 | . 9 43 15 25 45 3 51 67 Critical Kills 2 | . . . . 1 1 . . . Critical Parts Destroyed 2 | . . . . . . . 1 1 Critical Strikes 14 | . 1 3 . 3 3 . 2 2 Burn 9 | . 1 3 . 2 2 . 1 . Meltdown 2 | . . . . 1 1 . . . Destroy 2 | . . . . . . . 1 1 Corrupt 1 | . . . . . . . . 1 Melee Attacks . | . . . . . . . . . Impact . | . . . . . . . . . Slashing . | . . . . . . . . . Piercing . | . . . . . . . . . Sneak Attacks . | . . . . . . . . . Combat Hostiles . | . . . . . . . . . Follow-up Attacks . | . . . . . . . . . Damage Inflicted 11150 | . 201 1398 634 1379 2520 94 1779 3145 Guns 6920 | . 201 1297 600 645 897 . 1426 1854 Cannons 2193 | . . 82 . 722 960 81 348 . Explosions 1983 | . . . 34 . 658 . . 1291 Melee . | . . . . . . . . . Ramming 54 | . . 19 . 12 5 13 5 . Kinetic 1711 | . . . . . . . 983 728 Thermal 6813 | . 201 1379 375 1367 1857 81 791 762 Explosive 1949 | . . . . . 658 . . 1291 Electromagnetic 623 | . . . 259 . . . . 364 Impact . | . . . . . . . . . Slashing . | . . . . . . . . . Piercing . | . . . . . . . . . Highest Corruption 4 | . . 4 . . 1 2 . 2 Average Corruption 1 | . . 3 . . 1 1 . 1 Corruption Purged . | . . . . . . . . . Corruption Blocked . | . . . . . . . . . Effects 29 | . . 17 . . 10 2 . . Message Errors 9 | . . 4 . . 4 1 . . Matter Fused 8 | . . 5 . . 3 . . . Heat Flow Errors 2 | . . 1 . . . 1 . . Energy Discharges 4 | . . 3 . . 1 . . . Data Loss (minor) 3 | . . 2 . . 1 . . . Misfires 1 | . . 1 . . . . . . Weapon Failures 2 | . . 1 . . 1 . . . Overload Shots . | . . . . . . . . . Overflow Damage 27 | . . . 4 . 14 . 6 3 Projectiles 20 | . . . . . 14 . 6 . Explosions 7 | . . . 4 . . . . 3 Melee . | . . . . . . . . . Knockbacks 1 | . . . . . . . 1 . Impact 1 | . . . . . . . 1 . Kinetic . | . . . . . . . . . Secondary . | . . . . . . . . . Self-Inflicted Damage 234 | . . . 56 . 158 . . 20 Shots 10 | . . . 2 . 7 . . 1 Rammed 19 | . . 7 . 2 3 4 3 . Targets Rammed 22 | . . 10 . 2 3 4 3 . Kicked 2 | . . 2 . . . . . . Crushed 1 | . . 1 . . . . . . Highest Temperature 381 | . 198 335 339 188 273 233 371 381 Average Temperature 91 | . 67 97 134 61 62 74 141 130 Received Heat Transfer 3058 | . 36 189 216 315 913 . 897 492 Effects 12 | . . 3 1 . 1 3 2 2 Shutdowns 1 | . . . . . . . . 1 Energy Bleed 1 | . . . . . . . . 1 Interference 8 | . . 3 1 . 1 3 . . Matter Decay 2 | . . . . . . . 2 . Siege Activations . | . . . . . . . . . Robots Corrupted . | . . . . . . . . . Combat Hostiles . | . . . . . . . . . Parts Fried 4 | . . . 3 . . . . 1 Impact Corruptions . | . . . . . . . . . Robots Melted 5 | . . 1 1 2 1 . . . Combat Hostiles 5 | . . 1 1 2 1 . . . Parts Melted 35 | . . 10 2 10 9 1 1 2 Heat Transferred 14083 | . 607 3520 790 2738 3103 148 1628 1549 Parts Sabotaged 8 | . . . . . . . . 8 Parts Stolen . | . . . . . . . . . Parts Stripped . | . . . . . . . . . Power Chain Reactions 2 | . . . 2 . . . . . Alert | -11 -10 -9 -8 -8 -8 -8 -6 -6 ------- Run | Yrd Mat Mat Mat Sto Gar Rec Fac Gar Peak Influence 1437 | . 130 332 417 458 1437 709 480 661 Initial 646 | . . 54 99 176 300 646 334 231 Average 469 | . 80 209 215 278 793 641 343 367 Maximum Alert Level 4 | . . 1 2 2 4 3 2 2 Low Security (%) 16 | 100 100 50 41 12 . . . . Level 1 37 | . . 49 54 81 8 . 80 56 Level 2 21 | . . . 4 5 29 64 19 43 Level 3 17 | . . . . . 45 35 . . Level 4 5 | . . . . . 16 . . . Level 5 . | . . . . . . . . . High Security . | . . . . . . . . . Max Security . | . . . . . . . . . Squads Dispatched 10 | . 1 1 1 2 . . 5 . Investigation . | . . . . . . . . . Extermination . | . . . . . . . . . Reinforcement 3 | . 1 1 1 . . . . . Assault . | . . . . . . . . . Garrison 7 | . . . . 2 . . 5 . Intercept . | . . . . . . . . . Searches Triggered . | . . . . . . . . . Construction Impeded . | . . . . . . . . . Haulers Reinforced . | . . . . . . . . . Active Scanning Responses . | . . . . . . . . . Cargo Convoy Interrupts . | . . . . . . . . . Stealth | -11 -10 -9 -8 -8 -8 -8 -6 -6 --------- Run | Yrd Mat Mat Mat Sto Gar Rec Fac Gar Distress Signals 7 | . 1 1 2 1 . . 1 1 Communications Jammed . | . . . . . . . . . Distress Signals . | . . . . . . . . . Times Spotted 157 | . 7 24 17 18 32 3 19 37 Peak Tracking Total 12 | . 6 4 8 7 8 2 6 12 Tactical Retreats 9 | . . 1 2 1 2 . . 3 Traps | -11 -10 -9 -8 -8 -8 -8 -6 -6 ------- Run | Yrd Mat Mat Mat Sto Gar Rec Fac Gar Traps Triggered 11 | . . 2 . . 5 . 2 2 Indirectly . | . . . . . . . . . Trap Hack Attempts . | . . . . . . . . . Triggered . | . . . . . . . . . Disarmed . | . . . . . . . . . Reprogrammed . | . . . . . . . . . Reused . | . . . . . . . . . Traps Extracted . | . . . . . . . . . Installed . | . . . . . . . . . Triggered . | . . . . . . . . . Machines | -11 -10 -9 -8 -8 -8 -8 -6 -6 ---------- Run | Yrd Mat Mat Mat Sto Gar Rec Fac Gar Machines Disabled 8 | . . . . 2 5 . . 1 Max in Single Turn 1 | . . . . 1 1 . . 1 Garrison Relay 6 | . . . . . 5 . . 1 Machines Repaired . | . . . . . . . . . Machines Dismantled . | . . . . . . . . . Machines Sabotaged . | . . . . . . . . . Overloaded Fab Kills . | . . . . . . . . . Hacking | -11 -10 -9 -8 -8 -8 -8 -6 -6 --------- Run | Yrd Mat Mat Mat Sto Gar Rec Fac Gar Machines Accessed 14 | . . 1 2 2 4 3 2 . Terminals 11 | . . 1 2 1 4 3 . . Fabricators 1 | . . . . . . . 1 . Repair Stations . | . . . . . . . . . Recycling Units . | . . . . . . . . . Scanalyzers . | . . . . . . . . . Garrison Access 2 | . . . . 1 . . 1 . Total Hacks 35 | . . 2 9 3 8 10 3 . Successful 15 | . . 1 5 2 2 3 2 . Failed 18 | . . 1 3 1 6 6 1 . Catastrophic 4 | . . . . 1 1 1 1 . Database Lockouts 2 | . . . 1 . . 1 . . Manual 19 | . . . 8 2 . 9 . . Terminals 30 | . . 2 9 1 8 10 . . Fabricators 2 | . . . . . . . 2 . Repair Stations . | . . . . . . . . . Recycling Units . | . . . . . . . . . Scanalyzers . | . . . . . . . . . Garrison Access 3 | . . . . 2 . . 1 . Terminal Hacks 11 | . . 1 4 1 2 3 . . Record 1 | . . . . . . 1 . . Part Schematic 3 | . . . 3 . . . . . Robot Analysis 1 | . . . . . . 1 . . Prototype ID Bank 1 | . . 1 . . . . . . Open Door 2 | . . . . 1 1 . . . Unreport Threat 1 | . . . . . . 1 . . Zone Layout 1 | . . . 1 . . . . . Security Stations 1 | . . . . . 1 . . . Fabricator Hacks 1 | . . . . . . . 1 . Load Schematic 1 | . . . . . . . 1 . Repair Station Hacks . | . . . . . . . . . Recycling Unit Hacks . | . . . . . . . . . Scanalyzer . | . . . . . . . . . Garrison Access Hacks 2 | . . . . 1 . . 1 . Unlock Access 2 | . . . . 1 . . 1 . Unauthorized Hacks 1 | . . . 1 . . . . . Terminals 1 | . . . 1 . . . . . Track 1 | . . . 1 . . . . . Fabricators . | . . . . . . . . . Repair Stations . | . . . . . . . . . Recycling Units . | . . . . . . . . . Scanalyzers . | . . . . . . . . . Garrison Access . | . . . . . . . . . Data Cores Recovered 1 | . . . 1 . . . . . Used . | . . . . . . . . . Hacking Detections 13 | . . 1 2 1 4 3 2 . Full Trace Events 3 | . . . . . 1 2 . . Feedback Events 1 | . . . . . . 1 . . Corruption 1 | . . . . . . 1 . . Feedback Blocked . | . . . . . . . . . Robot Schematics Acquired . | . . . . . . . . . Robots Built . | . . . . . . . . . Authchips . | . . . . . . . . . Time . | . . . . . . . . . Total Robot Build Rating . | . . . . . . . . . Part Schematics Acquired 3 | . . . 3 . . . . . Parts Built . | . . . . . . . . . Authchips . | . . . . . . . . . Time . | . . . . . . . . . Total Part Build Rating . | . . . . . . . . . Parts Repaired . | . . . . . . . . . Time . | . . . . . . . . . Parts Recycled . | . . . . . . . . . Recycled Matter . | . . . . . . . . . Retrieved Matter . | . . . . . . . . . Retrieved Components . | . . . . . . . . . Parts Scanalyzed . | . . . . . . . . . Part Schematics Acquired . | . . . . . . . . . Parts Damaged . | . . . . . . . . . Bothacking | -11 -10 -9 -8 -8 -8 -8 -6 -6 ------------ Run | Yrd Mat Mat Mat Sto Gar Rec Fac Gar Used RIF Installer 2 | . . . . . 1 . . 1 Program Shield 1 | . . . . . . . . 1 Robots Hacked . | . . . . . . . . . Non-combat . | . . . . . . . . . Combat . | . . . . . . . . . Robot Hacks Applied . | . . . . . . . . . Relay Couplers Released 27 | . . . . . 24 . . 3 Machine Destruction 23 | . . . . . 20 . . 3 Programmers 4 | . . . . . 4 . . . Fabnet Peak Effective % . | . . . . . . . . . Robots Rewired 3 | . . . . . 3 . . . Allies Hacked . | . . . . . . . . . Hacks Repelled . | . . . . . . . . . Allies | -11 -10 -9 -8 -8 -8 -8 -6 -6 -------- Run | Yrd Mat Mat Mat Sto Gar Rec Fac Gar Total Allies 3 | . . . . . 3 . . . Largest Group 3 | . . . . . 3 1 1 . Highest-Rated Group 93 | . . . . . 93 31 31 . Highest-Rated Ally 31 | . . . . . 31 31 31 . Total Orders 3 | . . . . 1 1 . . 1 EXPLORE 3 | . . . . 1 1 . . 1 Ally Attacks 35 | . . . . . 29 5 1 . Total Damage 645 | . . . . . 561 84 . . Kills 9 | . . . . . 8 1 . . Allies Corrupted . | . . . . . . . . . Allies Melted . | . . . . . . . . . Intel | -11 -10 -9 -8 -8 -8 -8 -6 -6 ------- Run | Yrd Mat Mat Mat Sto Gar Rec Fac Gar Robot Analysis Total 1 | . . . . . . 1 . . Derelict Logs Recovered . | . . . . . . . . . Drone Launches 6 | . . . . 2 2 . . 2 Drone Recoveries 2 | . . . . 2 . . . . Exploration | -11 -10 -9 -8 -8 -8 -8 -6 -6 ------------- Run | Yrd Mat Mat Mat Sto Gar Rec Fac Gar Turns Passed 5445 | 60 161 888 391 615 1871 347 538 574 Spaces Moved 2403 | 45 97 377 168 238 850 206 229 193 Core 11 | 4 . . . . 5 . . 2 Treads 1511 | . . 296 168 238 570 206 33 . Legs 881 | 41 97 81 . . 275 . 196 191 Wheels . | . . . . . . . . . Hover . | . . . . . . . . . Flight . | . . . . . . . . . Fastest Speed 50 | 50 120 120 160 160 160 160 110 120 Average Speed 160 | 113 120 151 160 160 172 160 136 186 Slowest Speed 650 | 120 120 160 160 160 650 160 270 450 Overloaded Moves . | . . . . . . . . . Propulsion Burnouts . | . . . . . . . . . Robots Hopped . | . . . . . . . . . Cave-ins Triggered . | . . . . . . . . . Exploration Rate (%) 33 | 3 20 34 21 56 79 55 5 26 Regions Visited 8 Branch Regions 2 Pre-discovered Areas . | . . . . . . . . . Known Exits Taken 4 | . . . 1 1 . 1 1 . Unknown Exits Taken 3 | 1 1 1 . . . . . . Scrap Searched . | . . . . . . . . . Spaces Dug . | . . . . . . . . . Terrain Destroyed 106 | . . . 8 . 75 . 1 22 Melee . | . . . . . . . . . Projectile 1 | . . . . . . . 1 . AOE 105 | . . . 8 . 75 . . 22 Terrain Rammed . | . . . . . . . . . Walls Destroyed . | . . . . . . . . . Machines Disabled . | . . . . . . . . . Actions | -11 -10 -9 -8 -8 -8 -8 -6 -6 --------- Run | Yrd Mat Mat Mat Sto Gar Rec Fac Gar Total 3307 | 52 116 549 246 368 1102 214 350 310 Wait 178 | . 2 42 14 19 51 . 20 30 Move 2393 | 44 96 376 167 238 845 205 229 193 Hop . | . . . . . . . . . Pick Up 76 | 2 2 16 9 10 14 . 13 10 Fast Attach 58 | 5 2 5 1 8 12 . 12 13 Attach 45 | . . 2 4 2 12 . 12 13 Detach 12 | . . 3 1 2 3 . 1 2 Swap 49 | . 1 10 13 7 8 1 6 3 Drop 69 | 1 1 13 12 21 14 . 6 1 Fire 338 | . 12 72 25 59 78 4 48 40 Melee . | . . . . . . . . . Ram . | . . . . . . . . . Kick 2 | . . 2 . . . . . . Crush 20 | . . 8 . 2 3 4 3 . Escape Stasis 30 | . . . . . 25 . . 5 Rewire 37 | . . . . . 37 . . . Trap . | . . . . . . . . . Miscellaneous . | . . . . . . . . . Route ------- -11/Scrapyard -10/Materials -9/Materials (discovered 2 exits: *Mat x2) -8/Materials -8/Storage (discovered 2 exits: *Rec / Gar) -8/Garrison (discovered 3 exits: *Rec x3) -8/Recycling -6/Factory -6/Garrison History --------- Turn | Location | Event 3 | -11/Scrapyard | Discovered new exit (range 15) 61 | -11/Scrapyard | Entered Materials 199 | -10/Materials | Discovered new exit (range 16) 222 | -10/Materials | Entered another Materials area 222 | -9/Materials | Evolved 2 slots: Propulsion x1, Utility x1 315 | -9/Materials | Build established: Mutant 454 | -9/Materials | Discovered new exit (range 8) 1025 | -9/Materials | Discovered new exit (range 13) 1110 | -9/Materials | Entered another Materials area 1110 | -8/Materials | Evolved 2 slots: Utility x2 1377 | -8/Materials | Central database locked down 1385 | -8/Materials | Build established: Scavenger-Mutant 1492 | -8/Materials | Discovered new exit (range 8) 1500 | -8/Materials | Identified exit to Storage 1501 | -8/Materials | Entered Storage 1764 | -8/Storage | Used back door to open Recycling access 1764 | -8/Storage | Discovered new exit (range 4) 1967 | -8/Storage | Garrison activated, responded to threat 2065 | -8/Storage | Lost 3 parts (1p2u) 2116 | -8/Storage | Identified exit to Garrison 2116 | -8/Storage | Entered Garrison 2230 | -8/Garrison | Triggered checkpoint 2267 | -8/Garrison | Garrison Relay disabled 2398 | -8/Garrison | Triggered checkpoint 2400 | -8/Garrison | Triggered checkpoint 2470 | -8/Garrison | Destroyed 8 combat bots 2476 | -8/Garrison | Lost 6 parts (1p3n2w) 2692 | -8/Garrison | Discovered new exit (range 9) 2715 | -8/Garrison | Identified exit to Recycling 2717 | -8/Garrison | Attempted to access garrison exit controls, blocked by remote lockdown 2762 | -8/Garrison | Triggered checkpoint 2812 | -8/Garrison | Core integrity fell below 50% 2826 | -8/Garrison | Garrison Relay disabled 2838 | -8/Garrison | Lost 7 parts (1p3n3u) 3295 | -8/Garrison | Triggered checkpoint 3416 | -8/Garrison | Discovered exit to Recycling (range 10) 3460 | -8/Garrison | Triggered checkpoint 3502 | -8/Garrison | Triggered checkpoint 3502 | -8/Garrison | Garrison Relay disabled 3520 | -8/Garrison | Learned Recycling security intel 3586 | -8/Garrison | Attempted to access garrison exit controls, blocked by remote lockdown 3656 | -8/Garrison | Triggered checkpoint 3672 | -8/Garrison | Garrison Relay disabled 3806 | -8/Garrison | Triggered checkpoint 3858 | -8/Garrison | Garrison Relay disabled 3904 | -8/Garrison | Installed Relay Interface Framework 3968 | -8/Garrison | Discovered exit to Recycling (range 12) 3987 | -8/Garrison | Entered Recycling 3987 | -8/Recycling | Accompanied by 1 ally 4310 | -8/Recycling | Discovered new exit (range 16) 4333 | -8/Recycling | Identified exit to Factory 4334 | -8/Recycling | Entered Factory 4334 | -6/Factory | Accompanied by 1 ally 4334 | -6/Factory | Evolved 4 slots: Utility x3, Weapon x1 4370 | -6/Factory | Garrison activated, responded to threat 4537 | -6/Factory | Lost 17 parts (2p6n6u3w) 4690 | -6/Factory | Garrison activated, responded to threat 4694 | -6/Factory | Core integrity fell below 50% 4831 | -6/Factory | Build established: Scavenger-Gunner 4872 | -6/Factory | Identified exit to Garrison 4872 | -6/Factory | Entered Garrison 4974 | -6/Garrison | Triggered checkpoint 5052 | -6/Garrison | Garrison Relay disabled 5075 | -6/Garrison | Expanded RIF knowledge: Program Shield 5222 | -6/Garrison | Lost 4 parts (1p2u1w) 5323 | -6/Garrison | Lost 4 parts (1n1u2w) 5370 | -6/Garrison | Triggered checkpoint 5404 | -6/Garrison | Triggered checkpoint 5425 | -6/Garrison | Triggered checkpoint 5433 | -6/Garrison | Core integrity fell below 20% 5446 | -6/Garrison | Destroyed by X-72 Disruptor with Arc Projector Last Messages --------------- 05426_ Penetrated by Slug. 05426_ Lgt. Fission Core destroyed. 05428_ Carbon-fiber Leg destroyed. 05428_ Lrn. Missile Launcher destroyed. 05429_ The unstable cave ceiling collapses. 05429_ Lrn. Missile Launcher destroyed. 05430_ Adv. Heat Sink destroyed. 05431_ Slug penetrates Reinforced Barrier. 05431_ Core Shielding destroyed. 05433_ The unstable cave ceiling collapses. 05434_ Penetrated by Slug. 05434_ Acquired Carbon-fiber Leg. 05434_ Adv. Heat Sink destroyed. 05435_ Imp. Heat Sink destroyed. 05435_ Carbon-fiber Leg destroyed. 05436_ Lrg. Storage Unit destroyed. 05437_ Extracted 21 energy. 05437_ The unstable cave ceiling collapses. 05438_ Slug penetrates Wall. 05440_ Acquired Drone Bay. Map ----- +----------------------------------------------------+ | ?????????????????????????????????????????????????? | | ?????????????????????????????????????????????????? | | ?????????????????????????????????????????????????? | | ?????????????????????????????????????????????????? | | ?????????????????????????????????????????????????? | | ?????????????????????????????????????????????????? | | ?????????????????????????????????????????????????? | | ?????????????????????????????????? ?????????????? | | ?????????????????????????????????? #????????????? | | ?????????????????????????????????? ^#????????????? | | ?????????????????????????????????# #??##????????? | | ????????????????????????????????## #? #? #??? | | ???????????????????????????????? # ## ## #??? | | ???????????????????????????????? [ ???? | | ???????????????????????????????? %% ????? | | ????????????????????????????????# =%* ?????? | | ???????????????????????????????? # #?? #?? | | ??????????????????????????????### % ## ??? | | ??????????????????????????????# "?? | | ??????????????????????????????# "?? | | ??????????????????????????????# "?? | | ??????????????????????????????# [ ??? | | ????????????????????????????????# #?????? | | ??????????????????????###########x # # #?? | | ??????????????????????# * !php ? | | ??????????????????????#=[@ xp* = ? | | ??????????????????????#= ####### % #?? | | ??????????????????????# #?????## # ## ##?? | | ??????????????????????# #?????? ## #???#??? | | ????????????###########*%#??????## #??####??????? | | ????????????# =+???????# #????????????? | | ??????????### ######### #???????# #????????????? | | ??????????# = #????#### #???????# #????????????? | | ??????????# / #???? ## ######### #????????????? | | ??????????# #????# ## #????????????? | | ??????????### #????# ## #????????????? | | ????????????# #????# ## ############????????????? | | ??#######???# #????# ## #???????????????????????? | | ??#""""=##### ###### ## #???????????????????????? | | ??#" %=* = =[ =! % #???????????????????????? | | ??#""""*#######!!!##### #???????????????????????? | | ??#######????# ""#??# #???????????????????????? | | ?????????????#######??# #???????????????????????? | | ??????????????????????# #???????????????????????? | | ??????????????????????# #???????????????????????? | | ??????????????????????# #???????????????????????? | | ????################### #???????????????????????? | | ????# #???????????????????????? | | ????# #???????????????????????? | | ????#] ##### #########???????????????????????? | +----------------------------------------------------+ Best States ------------- Heat Dissipation 89 Energy Generation 18 Energy Capacity 265 Matter Stores 300 Matter Capacity 300 Sight Range 16 Robot Scan Range 14 Terrain Scan Density 10 Armor Coverage 300 Resistance: KI 20 Core Shielding 20 Propulsion Shielding 33 Evasion (%) 55 Targeting Accuracy 10 Target Analysis 5 Recoil Reduction 3 Offensive Hacking 10 Authchip Count 2 Item Schematics ----------------- Hcp. Storage Unit | -8/Materials | Hacked Lrg. Storage Unit | -8/Materials | Hacked Hacking Suite | -8/Materials | Hacked Robot Schematics ------------------ None Fabricated ------------ Nothing Alien Tech Used ----------------- None Achievements -------------- None Challenges ------------ None Game ------ Seed AerolevMassThruster Manual? 0 Play Time 00:51:04 Cumulative 610.0 hours Start 2024.03.05 @ 04:22:25 End 2024.03.05 @ 13:05:35 Sessions 3 Manual Loads 0 Difficulty Rogue Special Mode None Game No. 386 Rogue 386 Adventurer 0 Explorer 0 Win Type - Total 38 Types 25/1/6/6/0/0/0/0/0 Lore% 79 Gallery% 85 Achievement% 78 Wizard Run 0 Options --------- Layout 0 ASCII 1 Keyboard 1 Movement Numpad Keybinds 0 Fullscreen 1 Font 36/SmallcapsGlow++ Map View 76x50 Zoom Use 0% Tactical HUD 1 Map Filters NONE Filters NONE Steam 1 RUN: 244b3339-bb64-4419-9843-ed0dc6e2a057